[Event "*** Titled Tuesday Blitz"]
[Site "Chess.com"]
[Date "2020.11.03"]
[Round "4"]
[White "DenisQ"]
[Black "SARGISMV"]
[Result "1-0"]
[WhiteElo "2666"]
[BlackElo "2476"]
[TimeControl "180+1"]
[EndTime "10:40:43 PST"]
[Termination "DenisQ won by resignation"]

1. Nf3 {[%clk 0:03:00.9]} 1... c5 {[%clk 0:02:59.6]} 2. c4 {[%clk 0:03:00.3]}
2... Nc6 {[%clk 0:02:59.3]} 3. Nc3 {[%clk 0:03:00.5]} 3... g6 {[%clk 0:02:59.7]}
4. e3 {[%clk 0:03:00.1]} 4... Bg7 {[%clk 0:02:58.6]} 5. d4 {[%clk 0:03:00.2]}
5... d6 {[%clk 0:02:52.9]} 6. d5 {[%clk 0:03:00.1]} 6... Ne5 {[%clk 0:02:52.7]}
7. Nxe5 {[%clk 0:02:59.3]} 7... Bxe5 {[%clk 0:02:53.6]} 8. Bd3 {[%clk
0:02:59.5]} 8... a6 {[%clk 0:02:52.4]} 9. O-O {[%clk 0:02:58.4]} 9... Bg7 {[%clk
0:02:39.9]} 10. e4 {[%clk 0:02:56.3]} 10... Nf6 {[%clk 0:02:39.5]} 11. h3 {[%clk
0:02:52.8]} 11... O-O {[%clk 0:02:39.3]} 12. Re1 {[%clk 0:02:52.3]} 12... Rb8
{[%clk 0:02:36.6]} 13. Qc2 {[%clk 0:02:51.1]} 13... e6 {[%clk 0:02:13.9]} 14.
Bf4 {[%clk 0:02:41.1]} 14... exd5 {[%clk 0:02:13.4]} 15. exd5 {[%clk 0:02:39.7]}
15... Qc7 {[%clk 0:02:02.5]} 16. Re2 {[%clk 0:02:37.4]} 16... Bd7 {[%clk
0:01:55.5]} 17. a4 {[%clk 0:02:31.6]} 17... Rfe8 {[%clk 0:01:47.7]} 18. Rae1
{[%clk 0:02:30.8]} 18... Rxe2 {[%clk 0:01:46.6]} 19. Rxe2 {[%clk 0:02:30.7]}
19... Re8 {[%clk 0:01:44.6]} 20. g4 {[%clk 0:02:16.4]} 20... h6 {[%clk
0:01:27.5]} 21. Kg2 {[%clk 0:02:12.1]} 21... Rxe2 {[%clk 0:01:20]} 22. Qxe2
{[%clk 0:02:11.5]} 22... Bf8 {[%clk 0:00:46.6]} 23. Qf3 {[%clk 0:02:02.1]} 23...
Qb6 {[%clk 0:00:37.6]} 24. Bxh6 {[%clk 0:01:37.1]} 24... Bxh6 {[%clk 0:00:36.7]}
25. Qxf6 {[%clk 0:01:36.5]} 25... Qxb2 {[%clk 0:00:35.2]} 26. Ne4 {[%clk
0:01:19.1]} 26... Qa3 {[%clk 0:00:19.3]} 27. Qd8+ {[%clk 0:01:16.3]} 27... Kg7
{[%clk 0:00:17.9]} 28. Qxd7 {[%clk 0:01:14.1]} 28... Qxd3 {[%clk 0:00:17.8]} 29.
Nxd6 {[%clk 0:01:14.2]} 29... Bf4 {[%clk 0:00:05.7]} 30. Qxf7+ {[%clk
0:01:13.2]} 30... Kh6 {[%clk 0:00:05.9]} 31. Qxf4+ {[%clk 0:01:13.1]} 31... g5
{[%clk 0:00:05.1]} 1-0

[Event "*** Titled Tuesday Blitz"]
[Site "Chess.com"]
[Date "2020.11.03"]
[Round "4"]
[White "MariaFominykh"]
[Black "pedromartinez91"]
[Result "0-1"]
[WhiteElo "2322"]
[BlackElo "2594"]
[TimeControl "180+1"]
[EndTime "10:40:45 PST"]
[Termination "pedromartinez91 won by resignation"]

1. Nf3 {[%clk 0:03:00.9]} 1... b6 {[%clk 0:02:57.9]} 2. d3 {[%clk 0:02:56.6]}
2... Bb7 {[%clk 0:02:58.8]} 3. e4 {[%clk 0:02:56.7]} 3... e6 {[%clk 0:02:56.3]}
4. Nbd2 {[%clk 0:02:54.7]} 4... c5 {[%clk 0:02:54.7]} 5. g3 {[%clk 0:02:53.6]}
5... d5 {[%clk 0:02:54.6]} 6. Bg2 {[%clk 0:02:47.2]} 6... dxe4 {[%clk
0:02:54.6]} 7. dxe4 {[%clk 0:02:46.9]} 7... Nf6 {[%clk 0:02:54.7]} 8. Qe2 {[%clk
0:02:39.9]} 8... Ba6 {[%clk 0:02:51.7]} 9. Nc4 {[%clk 0:02:22.3]} 9... Be7
{[%clk 0:02:46.4]} 10. e5 {[%clk 0:02:14.2]} 10... Nd5 {[%clk 0:02:40.8]} 11.
O-O {[%clk 0:02:01]} 11... O-O {[%clk 0:02:40]} 12. Nfd2 {[%clk 0:01:50.5]}
12... Nc6 {[%clk 0:02:37.7]} 13. c3 {[%clk 0:01:46.9]} 13... Qc7 {[%clk
0:02:35.8]} 14. Re1 {[%clk 0:01:40.2]} 14... Rfd8 {[%clk 0:02:35.2]} 15. Qe4
{[%clk 0:01:36.7]} 15... Rac8 {[%clk 0:02:29.9]} 16. a4 {[%clk 0:01:29.1]} 16...
Bb7 {[%clk 0:02:28.8]} 17. Qg4 {[%clk 0:01:24.7]} 17... Bf8 {[%clk 0:02:22.5]}
18. h4 {[%clk 0:01:21.9]} 18... a6 {[%clk 0:02:19.9]} 19. Nf3 {[%clk 0:01:08.9]}
19... b5 {[%clk 0:02:16]} 20. Ne3 {[%clk 0:00:59.3]} 20... Nxe5 {[%clk
0:02:06.1]} 21. Nxe5 {[%clk 0:00:58.5]} 21... Qxe5 {[%clk 0:02:06.7]} 22. axb5
{[%clk 0:00:57.8]} 22... axb5 {[%clk 0:02:05]} 23. Ra7 {[%clk 0:00:57.2]} 23...
Nf6 {[%clk 0:01:53.1]} 24. Qg5 {[%clk 0:00:51.1]} 24... Qxg5 {[%clk 0:01:45.2]}
25. hxg5 {[%clk 0:00:52]} 25... Bxg2 {[%clk 0:01:45.6]} 26. gxf6 {[%clk
0:00:46.7]} 26... Bf3 {[%clk 0:01:39.9]} 27. fxg7 {[%clk 0:00:42.6]} 27... Bxg7
{[%clk 0:01:40.8]} 28. Ng2 {[%clk 0:00:31.3]} 28... b4 {[%clk 0:01:35.4]} 29.
Bg5 {[%clk 0:00:28]} 29... Rd5 {[%clk 0:01:31.5]} 30. Bf4 {[%clk 0:00:16.3]}
30... bxc3 {[%clk 0:01:26.5]} 31. bxc3 {[%clk 0:00:17.2]} 31... Bxc3 {[%clk
0:01:26.9]} 32. Re3 {[%clk 0:00:17.1]} 32... Bxg2 {[%clk 0:01:25.3]} 33. Kxg2
{[%clk 0:00:16.4]} 33... Bd4 {[%clk 0:01:25.9]} 34. Rea3 {[%clk 0:00:14.7]}
34... c4 {[%clk 0:01:21.6]} 35. Bc1 {[%clk 0:00:13.2]} 35... Bxa7 {[%clk
0:01:21]} 0-1

[Event "*** Titled Tuesday Blitz"]
[Site "Chess.com"]
[Date "2020.11.03"]
[Round "4"]
[White "RU_B9"]
[Black "Kolle05"]
[Result "0-1"]
[WhiteElo "1730"]
[BlackElo "2361"]
[TimeControl "180+1"]
[EndTime "10:40:48 PST"]
[Termination "Kolle05 won on time"]

1. Nf3 {[%clk 0:03:00.9]} 1... Nf6 {[%clk 0:02:57.4]} 2. c4 {[%clk 0:03:01.3]}
2... g6 {[%clk 0:02:56.8]} 3. Nc3 {[%clk 0:03:00.9]} 3... Bg7 {[%clk 0:02:56.5]}
4. e4 {[%clk 0:03:01.4]} 4... e5 {[%clk 0:02:56.3]} 5. d4 {[%clk 0:03:02.1]}
5... exd4 {[%clk 0:02:55.9]} 6. Nxd4 {[%clk 0:03:02.6]} 6... O-O {[%clk
0:02:54.5]} 7. Be2 {[%clk 0:02:55.5]} 7... Re8 {[%clk 0:02:53.7]} 8. f3 {[%clk
0:02:51.1]} 8... c6 {[%clk 0:02:52.7]} 9. c5 {[%clk 0:02:42.1]} 9... b6 {[%clk
0:02:36.2]} 10. cxb6 {[%clk 0:02:21.7]} 10... d5 {[%clk 0:02:25.3]} 11. bxa7
{[%clk 0:02:11.8]} 11... Rxa7 {[%clk 0:02:23.8]} 12. exd5 {[%clk 0:01:55.9]}
12... Nxd5 {[%clk 0:02:22.9]} 13. O-O {[%clk 0:01:38.2]} 13... Qb6 {[%clk
0:02:19.5]} 14. Nxd5 {[%clk 0:01:25.9]} 14... Bxd4+ {[%clk 0:02:12.1]} 15. Kh1
{[%clk 0:01:25.1]} 15... cxd5 {[%clk 0:02:12]} 16. Bh6 {[%clk 0:00:49.5]} 16...
Bf5 {[%clk 0:01:51]} 17. Bd3 {[%clk 0:00:31.3]} 17... Bxd3 {[%clk 0:01:18.5]}
18. Qxd3 {[%clk 0:00:32.2]} 18... Nc6 {[%clk 0:01:15.9]} 19. Rfe1 {[%clk
0:00:19.4]} 19... Rae7 {[%clk 0:01:10.5]} 20. Rxe7 {[%clk 0:00:17.5]} 20... Rxe7
{[%clk 0:01:11.4]} 21. Rc1 {[%clk 0:00:14.4]} 21... Qxb2 {[%clk 0:01:07.6]} 22.
h4 {[%clk 0:00:10.3]} 22... Qf2 {[%clk 0:00:46.2]} 0-1

[Event "*** Titled Tuesday Blitz"]
[Site "Chess.com"]
[Date "2020.11.03"]
[Round "4"]
[White "gammagramma"]
[Black "indfraeng"]
[Result "0-1"]
[WhiteElo "2533"]
[BlackElo "2348"]
[TimeControl "180+1"]
[EndTime "10:40:49 PST"]
[Termination "indfraeng won by resignation"]

1. d4 {[%clk 0:03:00.9]} 1... d5 {[%clk 0:02:59.8]} 2. c4 {[%clk 0:02:58]} 2...
c6 {[%clk 0:02:59.8]} 3. Nf3 {[%clk 0:02:58.9]} 3... Nf6 {[%clk 0:02:59.2]} 4.
c5 {[%clk 0:02:59.8]} 4... Nbd7 {[%clk 0:02:50.8]} 5. a3 {[%clk 0:02:56.9]} 5...
g6 {[%clk 0:02:38.2]} 6. Nbd2 {[%clk 0:02:52.7]} 6... Bg7 {[%clk 0:02:38.4]} 7.
b4 {[%clk 0:02:52.5]} 7... e5 {[%clk 0:02:35.4]} 8. Nxe5 {[%clk 0:02:40.4]} 8...
Nxe5 {[%clk 0:02:31.7]} 9. dxe5 {[%clk 0:02:41.3]} 9... Ng4 {[%clk 0:02:28.3]}
10. f4 {[%clk 0:02:41.4]} 10... Bf5 {[%clk 0:01:59.3]} 11. Nf3 {[%clk
0:02:33.6]} 11... O-O {[%clk 0:01:28.7]} 12. h3 {[%clk 0:02:33.1]} 12... Nh6
{[%clk 0:01:29.1]} 13. g4 {[%clk 0:02:26.4]} 13... Be4 {[%clk 0:01:27]} 14. Bg2
{[%clk 0:02:26.9]} 14... f6 {[%clk 0:01:26.3]} 15. Bb2 {[%clk 0:02:12.7]} 15...
fxe5 {[%clk 0:01:23.1]} 16. Bxe5 {[%clk 0:02:10.8]} 16... Bxe5 {[%clk
0:01:22.9]} 17. fxe5 {[%clk 0:02:10.8]} 17... Nf7 {[%clk 0:01:09.9]} 18. Qd4
{[%clk 0:02:08.2]} 18... Qe7 {[%clk 0:01:10.1]} 19. O-O {[%clk 0:02:07.1]} 19...
Rae8 {[%clk 0:01:09.8]} 20. Rae1 {[%clk 0:01:54.8]} 20... Nxe5 {[%clk
0:01:08.2]} 21. Nxe5 {[%clk 0:01:55.1]} 21... Qxe5 {[%clk 0:01:09.1]} 22. Rxf8+
{[%clk 0:01:54.5]} 22... Kxf8 {[%clk 0:01:09]} 23. Rf1+ {[%clk 0:01:53.2]} 23...
Kg8 {[%clk 0:00:54]} 24. Qf2 {[%clk 0:01:50.6]} 24... Bxg2 {[%clk 0:00:48]} 25.
Qf7+ {[%clk 0:01:49.2]} 25... Kh8 {[%clk 0:00:48.5]} 26. Kxg2 {[%clk 0:01:48.9]}
26... Qxe2+ {[%clk 0:00:48.3]} 27. Rf2 {[%clk 0:01:49.3]} 27... Qe4+ {[%clk
0:00:48.3]} 28. Rf3 {[%clk 0:01:46.3]} 28... Qe7 {[%clk 0:00:42.7]} 29. Kf2
{[%clk 0:01:40.5]} 29... Qe1+ {[%clk 0:00:38.7]} 30. Kg2 {[%clk 0:01:39.5]}
30... Re2+ {[%clk 0:00:36.7]} 31. Rf2 {[%clk 0:01:40]} 31... Rxf2+ {[%clk
0:00:26.1]} 32. Qxf2 {[%clk 0:01:40.9]} 32... Qxf2+ {[%clk 0:00:23.6]} 33. Kxf2
{[%clk 0:01:41.8]} 33... Kg7 {[%clk 0:00:24.1]} 34. Ke3 {[%clk 0:01:38.3]} 34...
g5 {[%clk 0:00:24.2]} 35. Kd3 {[%clk 0:01:36.6]} 35... Kf6 {[%clk 0:00:23.3]}
36. Kd4 {[%clk 0:01:36.7]} 36... Ke6 {[%clk 0:00:21.1]} 37. a4 {[%clk
0:01:35.8]} 37... a6 {[%clk 0:00:21.4]} 38. a5 {[%clk 0:01:35.4]} 38... h6
{[%clk 0:00:20.8]} 39. Kd3 {[%clk 0:01:34.4]} 39... Ke5 {[%clk 0:00:21.3]} 40.
Ke3 {[%clk 0:01:34.8]} 40... d4+ {[%clk 0:00:21.9]} 0-1

[Event "*** Titled Tuesday Blitz"]
[Site "Chess.com"]
[Date "2020.11.03"]
[Round "4"]
[White "lelya96"]
[Black "Qvalda"]
[Result "0-1"]
[WhiteElo "2205"]
[BlackElo "2407"]
[TimeControl "180+1"]
[EndTime "10:40:51 PST"]
[Termination "Qvalda won by resignation"]

1. e4 {[%clk 0:03:00.9]} 1... e6 {[%clk 0:02:59.9]} 2. d4 {[%clk 0:03:00.6]}
2... d5 {[%clk 0:03:00.8]} 3. Nc3 {[%clk 0:03:00.5]} 3... h6 {[%clk 0:03:00.2]}
4. Nf3 {[%clk 0:02:59.7]} 4... Nf6 {[%clk 0:02:59.5]} 5. Bd3 {[%clk 0:02:58.6]}
5... Bb4 {[%clk 0:02:58.3]} 6. e5 {[%clk 0:02:55.4]} 6... Ne4 {[%clk 0:02:58.4]}
7. O-O {[%clk 0:02:29.6]} 7... Nxc3 {[%clk 0:02:56.9]} 8. bxc3 {[%clk
0:02:28.8]} 8... Bxc3 {[%clk 0:02:57.8]} 9. Ba3 {[%clk 0:02:27.9]} 9... Bxa1
{[%clk 0:02:52.6]} 10. Qxa1 {[%clk 0:02:27.5]} 10... Nc6 {[%clk 0:02:52.8]} 11.
c4 {[%clk 0:02:24.5]} 11... dxc4 {[%clk 0:02:51.9]} 12. Bxc4 {[%clk 0:02:24.3]}
12... Ne7 {[%clk 0:02:52.2]} 13. Nd2 {[%clk 0:02:12.9]} 13... O-O {[%clk
0:02:51.2]} 14. Ne4 {[%clk 0:02:13.1]} 14... Re8 {[%clk 0:02:49.5]} 15. Rd1
{[%clk 0:02:06.2]} 15... b6 {[%clk 0:02:45.7]} 16. Qc1 {[%clk 0:02:04.4]} 16...
Bb7 {[%clk 0:02:42]} 17. Ng3 {[%clk 0:01:36.9]} 17... Ng6 {[%clk 0:02:34.8]} 18.
Qe3 {[%clk 0:01:27.3]} 18... Qh4 {[%clk 0:02:32.4]} 19. f3 {[%clk 0:01:05.9]}
19... Rad8 {[%clk 0:02:29.7]} 20. Bb5 {[%clk 0:01:02]} 20... c6 {[%clk
0:02:27.1]} 21. Bc4 {[%clk 0:00:55.5]} 21... Qf4 {[%clk 0:02:21.3]} 22. Qe2
{[%clk 0:00:51.8]} 22... Rxd4 {[%clk 0:02:06.7]} 23. Rxd4 {[%clk 0:00:25.7]}
23... Qxd4+ {[%clk 0:02:07.6]} 24. Kh1 {[%clk 0:00:23.1]} 24... Nxe5 {[%clk
0:01:51.1]} 25. Bb3 {[%clk 0:00:21.2]} 25... Qa1+ {[%clk 0:01:37.3]} 26. Nf1
{[%clk 0:00:20.5]} 26... Ng6 {[%clk 0:01:15.9]} 27. Bb2 {[%clk 0:00:20.5]} 27...
Qb1 {[%clk 0:01:15.3]} 28. h3 {[%clk 0:00:16.5]} 28... Nf4 {[%clk 0:00:59.5]}
29. Qf2 {[%clk 0:00:16.3]} 29... Nd3 {[%clk 0:00:57.5]} 0-1

[Event "*** Titled Tuesday Blitz"]
[Site "Chess.com"]
[Date "2020.11.03"]
[Round "4"]
[White "Neftegor"]
[Black "KetiGrant"]
[Result "1-0"]
[WhiteElo "2457"]
[BlackElo "2296"]
[TimeControl "180+1"]
[EndTime "10:40:53 PST"]
[Termination "Neftegor won on time"]

1. d4 {[%clk 0:03:00.9]} 1... Nf6 {[%clk 0:02:58.6]} 2. c4 {[%clk 0:03:00.7]}
2... g6 {[%clk 0:02:58.4]} 3. Nc3 {[%clk 0:03:00.8]} 3... Bg7 {[%clk 0:02:58.7]}
4. e4 {[%clk 0:03:01]} 4... d6 {[%clk 0:02:59.3]} 5. Nf3 {[%clk 0:03:01]} 5...
O-O {[%clk 0:02:59.7]} 6. Be2 {[%clk 0:03:01.3]} 6... e5 {[%clk 0:02:58.1]} 7.
O-O {[%clk 0:03:01]} 7... Nc6 {[%clk 0:02:58.2]} 8. d5 {[%clk 0:03:01.3]} 8...
Ne7 {[%clk 0:02:58.1]} 9. Bg5 {[%clk 0:03:01.7]} 9... Nd7 {[%clk 0:02:45.7]} 10.
b4 {[%clk 0:03:00.4]} 10... f6 {[%clk 0:02:43.5]} 11. Bd2 {[%clk 0:03:00.1]}
11... f5 {[%clk 0:02:29.8]} 12. Rc1 {[%clk 0:02:59.4]} 12... Nf6 {[%clk
0:02:27.4]} 13. exf5 {[%clk 0:02:58.4]} 13... gxf5 {[%clk 0:02:26.6]} 14. Nh4
{[%clk 0:02:56.6]} 14... c6 {[%clk 0:02:05.5]} 15. Qb3 {[%clk 0:02:47.9]} 15...
cxd5 {[%clk 0:02:00.4]} 16. cxd5 {[%clk 0:02:47.8]} 16... Kh8 {[%clk 0:02:00]}
17. Bg5 {[%clk 0:02:30.1]} 17... Qb6 {[%clk 0:01:49]} 18. Be3 {[%clk 0:02:27.5]}
18... Qd8 {[%clk 0:01:45.5]} 19. Bg5 {[%clk 0:02:24.8]} 19... a6 {[%clk
0:01:42.3]} 20. Rcd1 {[%clk 0:02:10]} 20... b5 {[%clk 0:01:32.6]} 21. a4 {[%clk
0:02:09]} 21... bxa4 {[%clk 0:01:27.6]} 22. Nxa4 {[%clk 0:02:08.4]} 22... Bb7
{[%clk 0:01:27.4]} 23. Nc3 {[%clk 0:02:08.4]} 23... Rc8 {[%clk 0:01:23.8]} 24.
Nf3 {[%clk 0:01:53]} 24... Qc7 {[%clk 0:01:09.3]} 25. Rc1 {[%clk 0:01:50.9]}
25... Qb8 {[%clk 0:01:08.3]} 26. Rfd1 {[%clk 0:01:47.8]} 26... Qa8 {[%clk
0:00:56.4]} 27. Bc4 {[%clk 0:01:45.8]} 27... Rc7 {[%clk 0:00:46.6]} 28. Bxf6
{[%clk 0:01:39.5]} 28... Bxf6 {[%clk 0:00:45.8]} 29. Na4 {[%clk 0:01:39.6]}
29... Rg8 {[%clk 0:00:41.4]} 30. Ne1 {[%clk 0:01:35]} 30... f4 {[%clk
0:00:14.6]} 31. Qd3 {[%clk 0:01:27.3]} 31... Rxc4 {[%clk 0:00:04.5]} 32. Rxc4
{[%clk 0:01:22.1]} 32... Bxd5 {[%clk 0:00:03.7]} 33. Nb6 {[%clk 0:01:10.1]} 1-0

[Event "*** Titled Tuesday Blitz"]
[Site "Chess.com"]
[Date "2020.11.03"]
[Round "4"]
[White "ShcufNaiRolf"]
[Black "gilbert_gm"]
[Result "0-1"]
[WhiteElo "2341"]
[BlackElo "2574"]
[TimeControl "180+1"]
[EndTime "10:40:54 PST"]
[Termination "gilbert_gm won by resignation"]

1. e4 {[%clk 0:03:00.9]} 1... c5 {[%clk 0:02:57.5]} 2. Nf3 {[%clk 0:02:58.1]}
2... d6 {[%clk 0:02:55.7]} 3. d4 {[%clk 0:02:56.2]} 3... cxd4 {[%clk 0:02:56.6]}
4. Nxd4 {[%clk 0:02:56.2]} 4... Nf6 {[%clk 0:02:57.2]} 5. Nc3 {[%clk 0:02:56.3]}
5... g6 {[%clk 0:02:57.3]} 6. Be3 {[%clk 0:02:53.3]} 6... Bg7 {[%clk 0:02:55.3]}
7. f3 {[%clk 0:02:52.3]} 7... Nc6 {[%clk 0:02:54.1]} 8. Qd2 {[%clk 0:02:52.1]}
8... Bd7 {[%clk 0:02:52.2]} 9. O-O-O {[%clk 0:02:48.4]} 9... Rc8 {[%clk
0:02:52]} 10. Kb1 {[%clk 0:02:41.1]} 10... Ne5 {[%clk 0:02:44.2]} 11. Bh6 {[%clk
0:02:17.1]} 11... Bxh6 {[%clk 0:02:42.7]} 12. Qxh6 {[%clk 0:02:18]} 12... Rxc3
{[%clk 0:02:42.8]} 13. bxc3 {[%clk 0:02:16.1]} 13... Qa5 {[%clk 0:01:56.2]} 14.
Kb2 {[%clk 0:02:13.3]} 14... Qb6+ {[%clk 0:01:53.6]} 15. Kc1 {[%clk 0:02:00.8]}
15... Qa5 {[%clk 0:01:45.4]} 16. Kd2 {[%clk 0:01:55.1]} 16... Qc5 {[%clk
0:01:37.4]} 17. Rb1 {[%clk 0:01:42.2]} 17... b6 {[%clk 0:01:30.3]} 18. Be2
{[%clk 0:01:19.6]} 18... d5 {[%clk 0:01:19.9]} 19. Bd3 {[%clk 0:00:25.9]} 19...
dxe4 {[%clk 0:01:12.6]} 20. fxe4 {[%clk 0:00:26.8]} 20... Nc4+ {[%clk
0:01:09.4]} 21. Ke1 {[%clk 0:00:20.2]} 21... Ne5 {[%clk 0:00:48.8]} 22. Rf1
{[%clk 0:00:14.6]} 22... Qxc3+ {[%clk 0:00:46.9]} 23. Qd2 {[%clk 0:00:15.2]}
23... Qxd4 {[%clk 0:00:46.1]} 24. Rb5 {[%clk 0:00:13.2]} 24... Nxd3+ {[%clk
0:00:41.3]} 25. Qxd3 {[%clk 0:00:12.7]} 25... Qxd3 {[%clk 0:00:41.5]} 26. cxd3
{[%clk 0:00:13]} 26... Bxb5 {[%clk 0:00:41.9]} 0-1

[Event "*** Titled Tuesday Blitz"]
[Site "Chess.com"]
[Date "2020.11.03"]
[Round "4"]
[White "PattyCastillo"]
[Black "Tenamu"]
[Result "0-1"]
[WhiteElo "1927"]
[BlackElo "2363"]
[TimeControl "180+1"]
[EndTime "10:40:54 PST"]
[Termination "Tenamu won by resignation"]

1. d4 {[%clk 0:03:00.9]} 1... e6 {[%clk 0:03:00.2]} 2. Nf3 {[%clk 0:03:00.7]}
2... Nf6 {[%clk 0:03:00.4]} 3. e3 {[%clk 0:03:00.4]} 3... c5 {[%clk 0:03:01]} 4.
Bd3 {[%clk 0:03:00.1]} 4... b6 {[%clk 0:03:00.2]} 5. O-O {[%clk 0:02:59.3]} 5...
Bb7 {[%clk 0:03:00.6]} 6. b3 {[%clk 0:02:59.2]} 6... d5 {[%clk 0:03:00.4]} 7.
Bb2 {[%clk 0:02:59]} 7... Nbd7 {[%clk 0:03:00.9]} 8. Nbd2 {[%clk 0:02:58.8]}
8... Bd6 {[%clk 0:02:58.4]} 9. Qe2 {[%clk 0:02:58]} 9... O-O {[%clk 0:02:56.9]}
10. Ne5 {[%clk 0:02:57.8]} 10... Ne4 {[%clk 0:02:53.9]} 11. f4 {[%clk
0:02:46.5]} 11... f5 {[%clk 0:02:51.6]} 12. Rad1 {[%clk 0:02:35.9]} 12... Ndf6
{[%clk 0:02:48.8]} 13. c4 {[%clk 0:02:34.9]} 13... Qe7 {[%clk 0:02:40.6]} 14.
Rf3 {[%clk 0:02:10.8]} 14... Nxd2 {[%clk 0:02:37.1]} 15. Qxd2 {[%clk 0:02:02.6]}
15... dxc4 {[%clk 0:02:35.3]} 16. bxc4 {[%clk 0:01:49.8]} 16... Bxf3 {[%clk
0:02:33.2]} 17. Nxf3 {[%clk 0:01:49.7]} 17... Rad8 {[%clk 0:02:28.4]} 18. Qc2
{[%clk 0:01:45.1]} 18... Rc8 {[%clk 0:02:23.7]} 19. Ng5 {[%clk 0:01:37.9]} 19...
h6 {[%clk 0:02:22.8]} 20. Nf3 {[%clk 0:01:37.2]} 20... cxd4 {[%clk 0:02:22.3]}
21. Bxd4 {[%clk 0:01:32]} 21... Bc5 {[%clk 0:02:20.7]} 22. Ne5 {[%clk
0:01:27.3]} 22... Bxd4 {[%clk 0:02:18.1]} 23. exd4 {[%clk 0:01:27]} 23... Rfd8
{[%clk 0:02:18.2]} 24. Qf2 {[%clk 0:01:19.9]} 24... Ng4 {[%clk 0:01:54.8]} 25.
Nxg4 {[%clk 0:01:16.1]} 25... fxg4 {[%clk 0:01:55.7]} 26. Re1 {[%clk 0:01:14]}
26... Qf6 {[%clk 0:01:55.1]} 27. Re5 {[%clk 0:01:06.6]} 27... Rc7 {[%clk
0:01:47]} 28. Qe3 {[%clk 0:01:05]} 28... Rcd7 {[%clk 0:01:43.5]} 29. d5 {[%clk
0:00:59.4]} 29... exd5 {[%clk 0:01:41.8]} 30. Re8+ {[%clk 0:00:56.2]} 30... Kf7
{[%clk 0:01:36.9]} 31. Re5 {[%clk 0:00:45.8]} 31... Re7 {[%clk 0:01:28.9]} 32.
cxd5 {[%clk 0:00:40.5]} 32... Rxe5 {[%clk 0:01:24.5]} 33. fxe5 {[%clk
0:00:40.3]} 33... Qg5 {[%clk 0:01:24.6]} 34. Qf2+ {[%clk 0:00:36.3]} 34... Kg8
{[%clk 0:01:22.9]} 35. g3 {[%clk 0:00:20.2]} 35... Qxe5 {[%clk 0:01:20.7]} 36.
Bc4 {[%clk 0:00:15.6]} 36... Kh8 {[%clk 0:01:18.5]} 37. Qf7 {[%clk 0:00:10.8]}
37... Qd4+ {[%clk 0:01:16.3]} 0-1

[Event "*** Titled Tuesday Blitz"]
[Site "Chess.com"]
[Date "2020.11.03"]
[Round "4"]
[White "Fandorine"]
[Black "elisak43"]
[Result "1-0"]
[WhiteElo "2828"]
[BlackElo "2489"]
[TimeControl "180+1"]
[EndTime "10:40:55 PST"]
[Termination "Fandorine won on time"]

1. Nf3 {[%clk 0:03:00.9]} 1... Nf6 {[%clk 0:02:55.3]} 2. g3 {[%clk 0:03:00.6]}
2... d5 {[%clk 0:02:53.8]} 3. Bg2 {[%clk 0:03:00.6]} 3... Bg4 {[%clk 0:02:54.1]}
4. c4 {[%clk 0:02:55.6]} 4... Bxf3 {[%clk 0:02:46.9]} 5. Bxf3 {[%clk 0:02:55.5]}
5... e6 {[%clk 0:02:46.4]} 6. cxd5 {[%clk 0:02:55.5]} 6... exd5 {[%clk
0:02:44.5]} 7. Qb3 {[%clk 0:02:56]} 7... b6 {[%clk 0:02:36.7]} 8. Nc3 {[%clk
0:02:54.4]} 8... c6 {[%clk 0:02:35.6]} 9. O-O {[%clk 0:02:54.8]} 9... Bd6 {[%clk
0:02:33.9]} 10. d3 {[%clk 0:02:52.3]} 10... O-O {[%clk 0:02:31.8]} 11. e4 {[%clk
0:02:52.6]} 11... dxe4 {[%clk 0:02:11.5]} 12. dxe4 {[%clk 0:02:52.8]} 12... Nbd7
{[%clk 0:02:09.4]} 13. Bg2 {[%clk 0:02:51]} 13... Qe7 {[%clk 0:02:03.9]} 14. f4
{[%clk 0:02:49.9]} 14... Bc5+ {[%clk 0:02:00.5]} 15. Kh1 {[%clk 0:02:50.1]}
15... Ng4 {[%clk 0:02:00.9]} 16. Qc2 {[%clk 0:02:48.2]} 16... Rad8 {[%clk
0:01:53.4]} 17. e5 {[%clk 0:02:46.7]} 17... Qe6 {[%clk 0:01:38.8]} 18. Ne4
{[%clk 0:02:44]} 18... Qh6 {[%clk 0:01:09.9]} 19. h3 {[%clk 0:02:43.3]} 19...
Ne3 {[%clk 0:01:10.8]} 20. Bxe3 {[%clk 0:02:43]} 20... Bxe3 {[%clk 0:01:11.7]}
21. Rae1 {[%clk 0:02:31.2]} 21... Bd4 {[%clk 0:01:09.4]} 22. Nd6 {[%clk
0:02:26.3]} 22... Bc5 {[%clk 0:00:46.4]} 23. Rd1 {[%clk 0:02:20.3]} 23... Nb8
{[%clk 0:00:36.3]} 24. Ne4 {[%clk 0:02:18.2]} 24... Bd4 {[%clk 0:00:26.2]} 25.
b4 {[%clk 0:02:15.7]} 25... Qe6 {[%clk 0:00:09]} 26. Ng5 {[%clk 0:02:05.5]}
26... Qg6 {[%clk 0:00:09]} 27. Be4 {[%clk 0:02:04.1]} 27... Qh6 {[%clk
0:00:09.5]} 28. Kg2 {[%clk 0:01:58.1]} 28... c5 {[%clk 0:00:08.8]} 29. Bxh7+
{[%clk 0:01:55.5]} 29... Kh8 {[%clk 0:00:08.8]} 30. bxc5 {[%clk 0:01:56]} 30...
bxc5 {[%clk 0:00:07.5]} 31. Be4 {[%clk 0:01:55.4]} 31... Nd7 {[%clk 0:00:05.2]}
32. h4 {[%clk 0:01:54.1]} 32... Nb6 {[%clk 0:00:05.4]} 33. Qb3 {[%clk
0:01:49.9]} 33... Kg8 {[%clk 0:00:05.2]} 34. e6 {[%clk 0:01:48.2]} 34... fxe6
{[%clk 0:00:04.4]} 35. Qxe6+ {[%clk 0:01:47.6]} 35... Qxe6 {[%clk 0:00:03.7]}
36. Nxe6 {[%clk 0:01:48.5]} 36... Rfe8 {[%clk 0:00:03.8]} 37. Nxd8 {[%clk
0:01:46.3]} 37... Rxe4 {[%clk 0:00:04.7]} 38. Rfe1 {[%clk 0:01:45.9]} 38... Rxe1
{[%clk 0:00:02.8]} 39. Rxe1 {[%clk 0:01:46.3]} 39... c4 {[%clk 0:00:03.7]} 40.
Nc6 {[%clk 0:01:45]} 40... Bc5 {[%clk 0:00:02.7]} 41. Rc1 {[%clk 0:01:43.4]}
41... Nd5 {[%clk 0:00:02.8]} 42. Kf3 {[%clk 0:01:40.3]} 42... c3 {[%clk
0:00:03.1]} 43. Ke4 {[%clk 0:01:36.4]} 43... Be3 {[%clk 0:00:03]} 44. Rc2 {[%clk
0:01:35]} 1-0